fUSD/lending_fUSD_20250806
["ID","MTS","AMOUNT","RATE_DAILY","PERIOD"]
[377554681,1754441485079,-1434.38,0.0003589,14]
[377554682,1754441485095,-2528.43,0.0003589,14]
[377554683,1754441485112,-1450.63,0.0003589,14]
[377554684,1754441485131,-400.0,0.0003589,14]
[377554685,1754441485148,-400.0,0.0003589,14]
[377554686,1754441485166,-760.31,0.0003589,14]
[377554687,1754441485183,-3309.5,0.0003589,14]
[377554688,1754441485199,-400.0,0.0003589,14]
[377554689,1754441485215,-1568.07,0.0003589,14]
[377554690,1754441485232,-400.0,0.0003589,14]
[377554691,1754441485249,-2739.99,0.0003589,14]
[377554692,1754441485266,-2098.76,0.0003589,14]
[377554693,1754441485282,-463.10716839,0.0003589,14]
[377554694,1754441485299,-400.0,0.0003589,14]
[377554695,1754441485315,-482.79,0.0003589,14]
[377554696,1754441485332,-1282.53,0.0003589,14]
[377554697,1754441485349,-392.30906744,0.0003589,14]
[377554698,1754441485376,-2733.78,0.0003589,14]
[377554699,1754441485393,-2849.66,0.0003589,14]
[377554700,1754441485411,-693.49,0.0003589,14]
[377554701,1754441485428,-400.0,0.0003589,14]
[377554702,1754441485445,-400.0,0.0003589,14]
[377554703,1754441485461,-1527.39,0.0003589,14]
[377554704,1754441485478,-400.0,0.0003589,14]
[377554705,1754441485494,-1889.37,0.0003589,14]
[377554706,1754441485513,-1880.55,0.0003589,14]
[377554707,1754441485529,-2202.71,0.0003589,14]
[377554708,1754441485547,-1249.54,0.0003589,14]
[377554709,1754441485564,-629.93,0.0003589,14]
[377554710,1754441485581,-1066.71,0.0003589,14]
[377554711,1754441485598,-1136.05,0.0003589,14]
[377554712,1754441485614,-400.0,0.0003589,14]
[377554713,1754441485632,-1892.42,0.0003589,14]
[377554714,1754441485648,-2349.05,0.0003589,14]
[377554715,1754441485665,-400.0,0.0003589,14]
[377554716,1754441485681,-400.0,0.0003589,14]
[377554717,1754441485699,-400.0,0.0003589,14]
[377554718,1754441485716,-400.0,0.0003589,14]
[377554719,1754441485732,-2270.72,0.0003589,14]
[377554720,1754441485749,-400.0,0.0003589,14]
[377554721,1754441485766,-400.0,0.0003589,14]
[377554722,1754441485783,-400.0,0.0003589,14]
[377554723,1754441485800,-400.0,0.0003589,14]
[377554724,1754441485817,-1486.7,0.0003589,14]
[377554725,1754441485836,-1795.28,0.0003589,14]
[377554726,1754441485854,-1477.02,0.0003589,14]
[377554727,1754441485871,-400.0,0.0003589,14]
[377554728,1754441485889,-1241.22,0.0003589,14]
[377554729,1754441485907,-499.58,0.0003589,14]
[377554730,1754441485923,-400.0,0.0003589,14]
[377554731,1754441485941,-862.34,0.0003589,14]
[377554732,1754441485957,-1726.48,0.0003589,14]
[377554733,1754441485975,-583.45,0.0003589,14]
[377554734,1754441485992,-2093.27,0.0003589,14]
[377554735,1754441486008,-558.87,0.0003589,14]
[377554736,1754441486027,-400.0,0.0003589,14]
[377554737,1754441486043,-798.11,0.0003589,14]
[377554738,1754441486060,-1413.75,0.0003589,14]
[377554739,1754441486077,-612.99,0.0003589,14]
[377554740,1754441486094,-1089.46,0.0003589,14]
[377554741,1754441486110,-400.0,0.0003589,14]
[377554742,1754441486126,-400.0,0.0003589,14]
[377554743,1754441486162,-400.0,0.0003589,14]
[377554744,1754441486194,-580.55,0.0003589,14]
[377554745,1754441486222,-443.87,0.0003589,14]
[377554746,1754441486245,-2267.17,0.0003589,14]
[377554747,1754441486271,-2144.28,0.0003589,14]
[377554748,1754441486296,-2224.09,0.0003589,14]
[377554749,1754441486315,-1704.68,0.0003589,14]
[377554750,1754441486340,-2131.42,0.0003589,14]
[377554751,1754441486367,-400.0,0.0003589,14]
[377554752,1754441486387,-400.0,0.0003589,14]
[377554753,1754441486406,-400.0,0.0003589,14]
[377554754,1754441486427,-913.04,0.0003589,14]
[377554755,1754441486445,-639.81,0.0003589,14]
[377554756,1754441486465,-908.5,0.0003589,14]
[377554757,1754441486484,-1185.36,0.0003589,14]
[377554758,1754441486503,-300.0,0.0003589,14]
[377554759,1754441486522,-868.3,0.0003589,14]
[377554760,1754441486557,-1924.65,0.0003589,14]
[377554761,1754441486586,-725.9,0.0003589,14]
[377554762,1754441486611,-400.0,0.0003589,14]
[377554763,1754441486637,-400.0,0.0003589,14]
[377554764,1754441486665,-417.57,0.0003589,14]
[377554765,1754441486687,-1577.71,0.0003589,14]
[377554766,1754441486710,-2503.55,0.0003589,14]
[377554767,1754441486732,-400.0,0.0003589,14]
[377554768,1754441486754,-1228.15,0.0003589,14]
[377554769,1754441486775,-400.0,0.0003589,14]
[377554770,1754441486797,-2568.76,0.0003589,14]
[377554771,1754441486816,-400.0,0.0003589,14]
[377554772,1754441486837,-2135.32,0.0003589,14]
[377554773,1754441486859,-1762.81,0.0003589,14]
[377554774,1754441486880,-857.39,0.0003589,14]
[377554775,1754441486902,-2270.22,0.0003589,14]
[377554776,1754441486933,-2838.97,0.0003589,14]
[377554777,1754441486961,-400.0,0.0003589,14]
[377554778,1754441486988,-1399.29,0.0003589,14]
[377554779,1754441487014,-400.0,0.0003589,14]
[377554780,1754441487037,-400.0,0.0003589,14]
[377554781,1754441487060,-470.07,0.0003589,14]
[377554782,1754441487083,-6325.45,0.0003589,14]
[377554783,1754441487108,-3352.54,0.0003589,14]
[377554784,1754441487130,-1553.18,0.0003589,14]
[377554785,1754441487150,-2779.06,0.0003589,14]
[377554786,1754441487171,-400.0,0.0003589,14]
[377554787,1754441487192,-2028.48,0.0003589,14]
[377554788,1754441487212,-1803.34,0.0003589,14]
[377554789,1754441487231,-3478.22,0.0003589,14]
[377554790,1754441487251,-1140.76,0.0003589,14]
[377554791,1754441487272,-1456.01,0.0003589,14]
[377554792,1754441487299,-400.0,0.0003589,14]
[377554793,1754441487325,-2361.48,0.0003589,14]
[377554794,1754441487348,-848.25,0.0003589,14]
[377554795,1754441487373,-400.0,0.0003589,14]
[377554796,1754441487395,-523.76,0.0003589,14]
[377554797,1754441487416,-699.2,0.0003589,14]
[377554798,1754441487438,-431.86,0.0003589,14]
[377554799,1754441487460,-400.0,0.0003589,14]
[377554800,1754441487950,-2255.88,0.0003589,14]
[377554801,1754441487971,-2152.57,0.0003589,14]
[377554802,1754441487981,-888.33,0.0003589,14]
[377554803,1754441487990,-874.98,0.0003589,14]
[377554804,1754441487999,-3293.89,0.0003589,14]
[377554805,1754441488008,-939.85,0.0003589,14]
[377554806,1754441488018,-1909.54,0.0003589,14]
[377554807,1754441488028,-400.0,0.0003589,14]
[377554808,1754441488037,-400.0,0.0003589,14]
[377554809,1754441488046,-2109.15,0.0003589,14]
[377554810,1754441488056,-1102.01,0.0003589,14]
[377554811,1754441488065,-3374.44,0.0003589,14]
[377554812,1754441488075,-400.0,0.0003589,2]
[377554813,1754441488085,-2145.79,0.0003589,14]
[377554814,1754441488094,-618.51,0.0003589,14]
[377554815,1754441488116,-434.85,0.0003589,14]
[377554816,1754441488126,-2357.82,0.0003589,14]
[377554817,1754441488136,-400.0,0.0003589,14]
[377554818,1754441488146,-1950.63,0.0003589,14]
[377554819,1754441488156,-1520.27,0.0003589,14]
[377554820,1754441488166,-400.0,0.0003589,14]
[377554821,1754441488176,-400.0,0.0003589,14]
[377554822,1754441488186,-911.66,0.0003589,14]
[377554823,1754441488196,-2939.65,0.0003589,14]
[377554824,1754441488207,-400.0,0.0003589,14]
[377554825,1754441488216,-2124.06,0.0003589,14]
[377554826,1754441488226,-400.0,0.0003589,14]
[377554827,1754441488235,-400.0,0.0003589,14]
[377554828,1754441488244,-400.0,0.0003589,14]
[377554829,1754441488254,-756.79,0.0003589,2]
[377554830,1754441488263,-3264.55,0.0003589,14]
[377554831,1754441488273,-400.0,0.0003589,14]
[377554832,1754441488282,-400.0,0.0003589,14]
[377554833,1754441488291,-400.0,0.0003589,14]
[377554834,1754441488301,-1922.06,0.0003589,14]
[377554835,1754441488310,-400.0,0.0003589,14]
[377554836,1754441488320,-208.22100829,0.0003589,14]
[377554837,1754441488331,-400.0,0.0003589,14]
[377554838,1754441488340,-2559.37,0.0003589,14]
[377554839,1754441488350,-400.0,0.0003589,14]
[377554840,1754441488359,-1266.51,0.0003589,14]
[377554841,1754441488369,-1150.41,0.0003589,14]
[377554842,1754441488379,-400.0,0.0003589,14]
[377554843,1754441488389,-1486.85,0.0003589,14]
[377554844,1754441488398,-400.0,0.0003589,2]
[377554845,1754441488408,-400.0,0.0003589,14]
[377554846,1754441488417,-484.1,0.0003589,14]
[377554847,1754441488426,-993.02,0.0003589,14]
[377554848,1754441488436,-400.0,0.0003589,14]
[377554849,1754441488445,-1838.65,0.0003589,14]
[377554850,1754441488455,-495.42,0.0003589,14]
[377554851,1754441488464,-3321.44,0.0003589,14]
[377554852,1754441488473,-400.0,0.0003589,14]
[377554853,1754441488483,-1184.42,0.0003589,14]
[377554854,1754441488493,-400.0,0.0003589,14]
[377554855,1754441488503,-400.0,0.0003589,14]
[377554856,1754441488513,-159.0,0.000359,30]
[377554857,1754441488523,-159.0,0.000359,30]
[377554858,1754441488538,-159.0,0.000359,31]
[377554859,1754441488548,-150.0,0.00035908,2]
[377554860,1754441488559,-150.0,0.00035916,2]
[377554861,1754441488570,-150.0,0.00035927,2]
[377554862,1754441488581,-150.0,0.00035934,2]
[377554863,1754441488590,-228.67135452,0.00035949,7]
[377554864,1754441488602,-150.0,0.00035957,2]
[377554865,1754441488614,-150.0,0.00035984,2]
[377554866,1754441488624,-159.59182499,0.00035986,2]
[377554867,1754441488634,-1000.0,0.00035989,7]
[377554868,1754441488647,-150.0,0.00035991,2]
[377554869,1754441488658,-1000.0,0.00035995,7]
[377554870,1754441488667,-169.29,0.00036,36]
[377554871,1754441488678,-150.0,0.00036024,2]
[377554872,1754441488688,-150.0,0.00036048,2]
[377554873,1754441488698,-150.0,0.00036049,2]
[377554874,1754441488709,-1000.0,0.0003605,7]
[377554875,1754441488718,-157.81523369,0.00036064,8]
[377554876,1754441488728,-161.512538,0.00036064,2]
[377554877,1754441488738,-1000.0,0.00036066,7]
[377554878,1754441488748,-150.0,0.00036069,2]
[377554879,1754441488758,-150.0,0.00036076,2]
[377554880,1754441488768,-150.0,0.00036079,2]
[377554881,1754441488779,-150.0,0.0003609,2]
[377554882,1754441488788,-159.04855533,0.00036093,2]
[377554883,1754441488798,-159.59182499,0.00036103,2]
[377554884,1754441488808,-150.0,0.00036111,2]
[377554885,1754441488819,-3361.0,0.00036115,2]
[377554886,1754441488829,-809.0,0.00036115,2]
[377554887,1754441488839,-1251.0,0.00036115,2]
[377554888,1754441488849,-955.0,0.00036115,2]
[377554889,1754441488862,-1293.0,0.00036115,2]
[377554890,1754441488873,-958.0,0.00036115,2]
[377554891,1754441488884,-564.0,0.00036115,2]
[377554892,1754441488896,-2024.0,0.00036115,2]
[377554893,1754441488906,-597.0,0.00036115,2]
[377554894,1754441488916,-892.0,0.00036115,2]
[377554895,1754441488926,-1651.0,0.00036115,2]
[377554896,1754441488937,-4138.0,0.00036115,2]
[377554897,1754441488946,-865.0,0.00036115,2]
[377554898,1754441488957,-6071.0,0.00036115,2]
[377554899,1754441488967,-1000.0,0.00036119,7]
[377554900,1754441488982,-363.57771535,0.00036128,30]
[377554901,1754441488992,-1000.0,0.00036145,7]
[377554902,1754441489002,-795.02,0.00036157,3]
[377554903,1754441489012,-1325.39,0.00036163,14]
[377554904,1754441489022,-1325.39,0.00036163,14]
[377554905,1754441489033,-1325.39,0.00036163,14]
[377554906,1754441489043,-1325.39,0.00036163,14]
[377554907,1754441489053,-500.0,0.00036163,14]
[377554908,1754441489064,-500.0,0.00036163,14]
[377554909,1754441489074,-500.0,0.00036163,14]
[377554910,1754441489085,-500.0,0.00036163,14]
[377554911,1754441489096,-359.06,0.00036163,2]
[377554912,1754441489106,-854.66,0.00036163,14]
[377554913,1754441489116,-854.66,0.00036163,14]
[377554914,1754441489127,-854.66,0.00036163,14]
[377554915,1754441489137,-854.66,0.00036163,14]
[377554916,1754441489147,-943.43,0.00036163,14]
[377554917,1754441489157,-943.43,0.00036163,14]
[377554918,1754441489168,-943.43,0.00036163,14]
[377554919,1754441489178,-943.43,0.00036163,14]
[377554920,1754441489188,-500.0,0.00036163,14]
[377554921,1754441489199,-500.0,0.00036163,14]
[377554922,1754441489209,-500.0,0.00036163,14]
[377554923,1754441489219,-500.0,0.00036163,14]
[377554924,1754441489229,-500.0,0.00036163,14]
[377554925,1754441489240,-500.0,0.00036163,14]
[377554926,1754441489251,-500.0,0.00036163,14]
[377554927,1754441489261,-500.0,0.00036163,14]
[377554928,1754441489271,-500.0,0.00036163,14]
[377554929,1754441489281,-500.0,0.00036163,14]
[377554930,1754441489292,-6973.86321281,0.00036164,21]
[377554931,1754441489302,-394.35738475,0.00036164,14]
[377554932,1754441489313,-400.0,0.00036164,14]
[377554933,1754441489323,-299.26673603,0.00036164,14]
[377554934,1754441489333,-400.0,0.00036164,14]
[377554935,1754441489343,-400.0,0.00036164,14]
[377554936,1754441489353,-400.0,0.00036164,14]
[377554937,1754441489363,-400.0,0.00036164,14]
[377554938,1754441489373,-400.0,0.00036164,14]
[377554939,1754441489383,-400.0,0.00036164,14]
[377554940,1754441489393,-400.0,0.00036164,14]
[377554941,1754441489402,-400.0,0.00036164,14]
[377554942,1754441489413,-400.0,0.00036164,14]
[377554943,1754441489424,-400.0,0.00036164,14]
[377554944,1754441489435,-400.0,0.00036164,14]
[377554945,1754441489445,-400.0,0.00036164,14]
[377554946,1754441489455,-400.0,0.00036164,14]
[377554947,1754441489466,-400.0,0.00036164,14]
[377554948,1754441489476,-400.0,0.00036164,14]
[377554949,1754441489487,-400.0,0.00036164,14]
[377554950,1754441489497,-400.0,0.00036164,14]
[377554951,1754441489507,-400.0,0.00036164,14]
[377554952,1754441489517,-400.0,0.00036164,14]
[377554953,1754441489528,-400.0,0.00036164,14]
[377554954,1754441489538,-400.0,0.00036164,14]
[377554955,1754441489548,-373.19953796,0.00036164,14]
[377554956,1754441489559,-400.0,0.00036164,14]
[377554957,1754441489569,-1213.649741,0.00036164,14]
[377554958,1754441489580,-400.0,0.00036164,14]
[377554959,1754441489591,-930.411972,0.00036164,14]
[377554960,1754441489601,-400.0,0.00036164,14]
[377554961,1754441489611,-1369.629947,0.00036164,14]
[377554962,1754441489622,-400.0,0.00036164,14]
[377554963,1754441489632,-462.57,0.00036164,14]
[377554964,1754441489642,-400.0,0.00036164,14]
[377554965,1754441489652,-209.649565,0.00036164,14]
[377554966,1754441489662,-400.0,0.00036164,14]
[377554967,1754441489678,-150.296157,0.00036164,14]
[377554968,1754441489688,-408.59,0.00036164,14]
[377554969,1754441489698,-400.0,0.00036164,14]
[377554970,1754441489708,-400.0,0.00036164,14]
[377554971,1754441489720,-400.0,0.00036164,14]
[377554972,1754441489730,-400.0,0.00036164,14]
[377554973,1754441489740,-400.0,0.00036164,14]
[377554974,1754441489752,-400.0,0.00036164,14]
[377554975,1754441489762,-400.0,0.00036164,14]
[377554976,1754441489773,-400.0,0.00036164,14]
[377554977,1754441489784,-400.0,0.00036164,5]
[377554978,1754441489794,-400.0,0.00036164,14]
[377554979,1754441489804,-400.0,0.00036164,14]
[377554980,1754441489814,-742.25,0.00036164,14]
[377554981,1754441489824,-400.0,0.00036164,14]
[377554982,1754441489834,-400.0,0.00036164,14]
[377554983,1754441489845,-400.0,0.00036164,14]
[377554984,1754441489859,-400.0,0.00036164,14]
[377554985,1754441489873,-400.0,0.00036164,14]
[377554986,1754441489883,-999.49,0.00036164,14]
[377554987,1754441489893,-400.0,0.00036164,14]
[377554988,1754441489904,-1645.38,0.00036164,14]
[377554989,1754441489915,-400.0,0.00036164,14]
[377554990,1754441489926,-400.0,0.00036164,14]
[377554991,1754441489940,-400.0,0.00036164,2]
[377554992,1754441489950,-1907.78,0.00036164,14]
[377554993,1754441489960,-400.0,0.00036164,14]
[377554994,1754441489971,-400.0,0.00036164,14]
[377554995,1754441489981,-1386.98,0.00036164,14]
[377554996,1754441489990,-158.581555,0.00036164,14]
[377554997,1754441490001,-400.0,0.00036164,14]
[377554998,1754441490011,-400.0,0.00036164,14]
[377554999,1754441490021,-400.0,0.00036164,14]
[377555000,1754441490032,-189.22957728,0.00036164,14]
[377555001,1754441490042,-1365.47,0.00036164,14]
[377555002,1754441490053,-400.0,0.00036164,14]
[377555003,1754441490063,-400.0,0.00036164,14]
[377555004,1754441490074,-1353.25,0.00036164,14]
[377555005,1754441490085,-400.0,0.00036164,14]
[377555006,1754441490095,-1123.46,0.00036164,14]
[377555007,1754441490108,-695.76,0.00036164,14]
[377555008,1754441490119,-765.46,0.00036164,14]
[377555009,1754441490130,-400.0,0.00036164,14]
[377555010,1754441490140,-1781.95,0.00036164,14]
[377555011,1754441490151,-400.0,0.00036164,14]
[377555012,1754441490162,-447.16,0.00036164,14]
[377555013,1754441490173,-400.0,0.00036164,14]
[377555014,1754441490183,-2081.42,0.00036164,14]
[377555015,1754441490194,-400.0,0.00036164,14]
[377555016,1754441490205,-407.04,0.00036164,14]
[377555017,1754441490215,-869.86,0.00036164,14]
[377555018,1754441490226,-400.0,0.00036164,14]
[377555019,1754441490238,-471.96,0.00036164,14]
[377555020,1754441490248,-1504.31,0.00036164,14]
[377555021,1754441490259,-400.0,0.00036164,14]
[377555022,1754441490271,-400.0,0.00036164,14]
[377555023,1754441490282,-1957.35,0.00036164,14]
[377555024,1754441490293,-1517.21,0.00036164,14]
[377555025,1754441490303,-400.0,0.00036164,14]
[377555026,1754441490313,-400.0,0.00036164,14]
[377555027,1754441490322,-400.0,0.00036164,14]
[377555028,1754441490333,-400.0,0.00036164,14]
[377555029,1754441490343,-400.0,0.00036164,14]
[377555030,1754441490354,-400.0,0.00036164,14]
[377555031,1754441490364,-2019.11,0.00036164,14]
[377555032,1754441490374,-200.0,0.00036164,2]
[377555033,1754441490386,-400.0,0.00036164,14]
[377555034,1754441490396,-400.0,0.00036164,14]
[377555035,1754441490407,-400.0,0.00036164,14]
[377555036,1754441490417,-530.96,0.00036164,14]
[377555037,1754441490428,-400.0,0.00036164,14]
[377555038,1754441490439,-400.0,0.00036164,14]
[377555039,1754441490450,-400.0,0.00036164,14]
[377555040,1754441490460,-400.0,0.00036164,14]
[377555041,1754441490470,-400.0,0.00036164,14]
[377555042,1754441490480,-400.0,0.00036164,14]
[377555043,1754441490491,-1125.18,0.00036164,14]
[377555044,1754441490502,-1114.21,0.00036164,14]
[377555045,1754441490515,-400.0,0.00036164,14]
[377555046,1754441490526,-814.33,0.00036164,14]
[377555047,1754441490537,-874.07,0.00036164,14]
[377555048,1754441490548,-935.74,0.00036164,14]
[377555049,1754441490559,-1293.76,0.00036164,14]
[377555050,1754441490569,-400.0,0.00036164,14]
[377555051,1754441490582,-1399.02,0.00036164,14]
[377555052,1754441490592,-1338.54,0.00036164,14]
[377555053,1754441490603,-400.0,0.00036164,14]
[377555054,1754441490613,-400.0,0.00036164,14]
[377555055,1754441490642,-400.0,0.00036164,14]
[377555056,1754441490654,-400.0,0.00036164,14]
[377555057,1754441490664,-400.0,0.00036164,14]
[377555058,1754441490675,-400.0,0.00036164,14]
[377555059,1754441490686,-400.0,0.00036164,14]
[377555060,1754441490697,-423.27,0.00036164,14]
[377555061,1754441490707,-400.0,0.00036164,14]
[377555062,1754441490718,-979.05,0.00036164,14]
[377555063,1754441490729,-789.19,0.00036164,14]
[377555064,1754441490739,-823.45,0.00036164,14]
[377555065,1754441490750,-400.0,0.00036164,14]
[377555066,1754441490761,-400.0,0.00036164,14]
[377555067,1754441490771,-1122.04,0.00036164,14]
[377555068,1754441490782,-802.71,0.00036164,14]
[377555069,1754441490793,-400.0,0.00036164,14]
[377555070,1754441490804,-400.0,0.00036164,14]
[377555071,1754441490814,-400.0,0.00036164,14]
[377555072,1754441490826,-1607.43,0.00036164,14]
[377555073,1754441490837,-400.0,0.00036164,14]
[377555074,1754441490847,-400.0,0.00036164,14]
[377555075,1754441490861,-400.0,0.00036164,14]
[377555076,1754441490872,-527.8119044,0.00036164,14]
[377555077,1754441490883,-1717.21,0.00036164,14]
[377555078,1754441490893,-1028.52,0.00036164,14]
[377555079,1754441490904,-956.75,0.00036164,14]
[377555080,1754441490915,-679.36,0.00036164,14]
[377555081,1754441490926,-400.0,0.00036164,14]
[377555082,1754441490937,-676.26,0.00036164,14]
[377555083,1754441490949,-400.0,0.00036164,14]
[377555084,1754441490960,-731.88,0.00036164,14]
[377555085,1754441490971,-641.95,0.00036164,14]
[377555086,1754441490982,-1224.34,0.00036164,14]
[377555087,1754441490992,-400.0,0.00036164,14]
[377555088,1754441491002,-440.58,0.00036164,14]
[377555089,1754441491013,-469.35,0.00036164,14]
[377555090,1754441491024,-400.0,0.00036164,14]
[377555091,1754441491034,-400.0,0.00036164,14]
[377555092,1754441491045,-400.0,0.00036164,14]
[377555093,1754441491055,-400.0,0.00036164,14]
[377555094,1754441491066,-549.74,0.00036164,14]
[377555095,1754441491077,-536.6,0.00036164,14]
[377555096,1754441491087,-400.0,0.00036164,14]
[377555097,1754441491098,-695.16,0.00036164,14]
[377555098,1754441491109,-1141.67,0.00036164,14]
[377555099,1754441491119,-1493.32,0.00036164,14]
[377555100,1754441491130,-400.0,0.00036164,14]
[377555101,1754441491140,-400.0,0.00036164,14]
[377555102,1754441491150,-570.53,0.00036164,14]
[377555103,1754441491161,-1543.2,0.00036164,14]
[377555104,1754441491172,-400.0,0.00036164,14]
[377555105,1754441491182,-1891.46,0.00036164,14]
[377555106,1754441491192,-400.0,0.00036164,14]
[377555107,1754441491203,-400.0,0.00036164,14]
[377555108,1754441491213,-400.0,0.00036164,14]
[377555109,1754441491223,-400.0,0.00036164,14]
[377555110,1754441491233,-400.0,0.00036164,14]
[377555111,1754441491244,-1292.64,0.00036164,14]
[377555112,1754441491256,-400.0,0.00036164,14]
[377555113,1754441491267,-497.59,0.00036164,14]
[377555114,1754441491277,-400.0,0.00036164,14]
[377555115,1754441491287,-400.0,0.00036164,14]
[377555116,1754441491297,-1257.77,0.00036164,14]
[377555117,1754441491312,-927.06,0.00036164,14]
[377555118,1754441491322,-508.26,0.00036164,14]
[377555119,1754441491334,-400.0,0.00036164,14]
[377555120,1754441491345,-1213.46,0.00036164,14]
[377555121,1754441491355,-400.000001,0.00036164,14]
[377555122,1754441491366,-400.0,0.00036164,14]
[377555123,1754441491376,-400.0,0.00036164,14]
[377555124,1754441491387,-1108.52,0.00036164,14]
[377555125,1754441491397,-400.0,0.00036164,14]
[377555126,1754441491408,-1190.34,0.00036164,14]
[377555127,1754441491418,-400.0,0.00036164,14]
[377555128,1754441491428,-1907.67,0.00036164,14]
[377555129,1754441491857,-400.0,0.00036164,14]
[377555130,1754441491876,-596.14,0.00036164,14]
[377555131,1754441491885,-400.0,0.00036164,14]
[377555132,1754441491895,-400.0,0.00036164,14]
[377555133,1754441491904,-400.0,0.00036164,14]
[377555134,1754441491915,-400.0,0.00036164,14]
[377555135,1754441491925,-2200.8,0.00036164,14]
[377555136,1754441491936,-846.73,0.00036164,14]
[377555137,1754441491946,-1119.45,0.00036164,14]
[377555138,1754441491956,-400.0,0.00036164,14]
[377555139,1754441491966,-400.0,0.00036164,14]
[377555140,1754441491975,-400.0,0.00036164,7]
[377555141,1754441491984,-400.0,0.00036164,14]
[377555142,1754441491994,-400.0,0.00036164,14]
[377555143,1754441492003,-400.0,0.00036164,14]
[377555144,1754441492012,-1009.76,0.00036164,14]
[377555145,1754441492021,-405.23969307,0.00036164,14]
[377555146,1754441492030,-400.0,0.00036164,14]
[377555147,1754441492040,-1273.38,0.00036164,14]
[377555148,1754441492049,-2059.84,0.00036164,14]
[377555149,1754441492059,-379.78774166,0.00036164,14]
[377555150,1754441492068,-400.0,0.00036164,14]
[377555151,1754441492079,-400.0,0.00036164,14]
[377555152,1754441492088,-1062.57,0.00036164,14]
[377555153,1754441492098,-830.1,0.00036164,14]
[377555154,1754441492108,-400.0,0.00036164,14]
[377555155,1754441492119,-400.0,0.00036164,14]
[377555156,1754441492129,-400.0,0.00036164,14]
[377555157,1754441492139,-400.0,0.00036164,14]
[377555158,1754441492149,-400.0,0.00036164,14]
[377555159,1754441492159,-400.0,0.00036164,14]
[377555160,1754441492169,-400.0,0.00036164,14]
[377555161,1754441492180,-1966.69,0.00036164,14]
[377555162,1754441492189,-400.0,0.00036164,14]
[377555163,1754441492199,-400.0,0.00036164,14]
[377555164,1754441492208,-506.27,0.00036164,14]
[377555165,1754441492218,-400.0,0.00036164,14]
[377555166,1754441492227,-400.0,0.00036164,14]
[377555167,1754441492237,-2209.65,0.00036164,14]
[377555168,1754441492247,-1564.62,0.00036164,14]
[377555169,1754441492257,-400.0,0.00036164,14]
[377555170,1754441492267,-427.55,0.00036164,14]
[377555171,1754441492277,-549.3,0.00036164,14]
[377555172,1754441492286,-400.0,0.00036164,14]
[377555173,1754441492296,-400.0,0.00036164,14]
[377555174,1754441492306,-400.0,0.00036164,14]
[377555175,1754441492316,-400.0,0.00036164,14]
[377555176,1754441492327,-400.0,0.00036164,14]
[377555177,1754441492336,-485.77,0.00036164,14]
[377555178,1754441492346,-400.0,0.00036164,14]
[377555179,1754441492356,-825.57,0.00036164,14]
[377555180,1754441492365,-400.0,0.00036164,14]